fUST/lending_fUST_20251002
["ID","MTS","AMOUNT","RATE_DAILY","PERIOD"]
[388802137,1759365048433,-500.0,0.00020273,2]
[388802138,1759365048446,-642.77,0.00020273,2]
[388802139,1759365048455,-151.0,0.00020273,2]
[388802140,1759365048465,-810.67,0.00020273,2]
[388802141,1759365048474,-151.0,0.00020273,2]
[388802142,1759365048483,-151.0,0.00020273,2]
[388802143,1759365048493,-151.0,0.00020273,2]
[388802144,1759365048502,-151.0,0.00020273,2]
[388802145,1759365048511,-151.0,0.00020273,2]
[388802146,1759365048520,-151.0,0.00020273,2]
[388802147,1759365048529,-151.0,0.00020273,2]
[388802148,1759365048539,-500.0,0.00020273,2]
[388802149,1759365048550,-500.0,0.00020273,2]
[388802150,1759365048559,-1071.67,0.00020273,2]
[388802151,1759365048569,-151.0,0.00020273,2]
[388802152,1759365048578,-500.0,0.00020273,2]
[388802153,1759365048588,-1839.89,0.00020273,2]
[388802154,1759365048598,-500.0,0.00020273,2]
[388802155,1759365048607,-500.0,0.00020273,2]
[388802156,1759365048617,-500.0,0.00020273,2]
[388802157,1759365048626,-500.0,0.00020273,2]
[388802158,1759365048636,-480.0,0.00020273,2]
[388802159,1759365048646,-632.71,0.00020273,2]
[388802160,1759365048655,-551.67114289,0.00020273,2]
[388802161,1759365048664,-151.0,0.00020273,2]
[388802162,1759365048673,-500.0,0.00020273,2]
[388802163,1759365048682,-10000.0,0.00020273,2]
[388802164,1759365048691,-10000.0,0.00020273,2]
[388802165,1759365048700,-10000.0,0.00020273,2]
[388802166,1759365048709,-10000.0,0.00020273,2]
[388802167,1759365048718,-10000.0,0.00020273,2]
[388802168,1759365048727,-151.0,0.00020273,2]
[388802169,1759365048736,-151.0,0.00020273,2]
[388802170,1759365048745,-480.0,0.00020273,2]
[388802171,1759365048754,-500.0,0.00020273,2]
[388802172,1759365048763,-500.0,0.00020321,2]
[388802173,1759365048773,-160.0,0.00020322,2]
[388802174,1759365048782,-233.9640895,0.00020322,2]
[388802175,1759365048791,-160.0,0.00020322,2]
[388802176,1759365048800,-293.36416222,0.00020322,2]
[388802177,1759365048810,-160.0,0.00020322,2]
[388802178,1759365048819,-160.0,0.00020322,2]
[388802179,1759365048829,-500.0,0.0002034,2]
[388802180,1759365048837,-500.0,0.0002034,2]
[388802181,1759365048846,-260.0,0.00020396,2]
[388802182,1759365048856,-290.62400873,0.00020534,2]
[388802183,1759365048865,-500.0,0.00020547,2]
[388802184,1759365048875,-460.0,0.00020547,2]
[388802185,1759365048884,-500.0,0.00020547,2]
[388802186,1759365048893,-500.0,0.00020547,2]
[388802187,1759365048903,-541.98269103,0.00020547,2]
[388802188,1759365049011,-633.56922382,0.00020547,2]
[388802189,1759365049022,-810.67,0.00020547,2]
[388802190,1759365049031,-500.0,0.00020547,2]
[388802191,1759365049041,-1071.67,0.00020547,2]
[388802192,1759365049050,-500.0,0.00020547,2]
[388802193,1759365049061,-1839.89,0.00020547,2]
[388802194,1759365049071,-500.0,0.00020547,2]
[388802195,1759365049080,-500.0,0.00020547,2]
[388802196,1759365049089,-632.71,0.00020547,2]
[388802197,1759365049099,-500.0,0.00020547,2]
[388802198,1759365049109,-500.0,0.00020568,2]
[388802199,1759365049119,-1500.0,0.00020568,2]
[388802200,1759365049128,-155.47559791,0.00020577,2]
[388802201,1759365049138,-1371.19296058,0.0002061,2]
[388802202,1759365049147,-151.0,0.00020668,2]
[388802203,1759365049157,-420.0,0.00020668,2]
[388802204,1759365049166,-2000.0,0.00020816,2]
[388802205,1759365049175,-500.0,0.00020821,2]
[388802206,1759365049185,-174.58,0.00020821,2]
[388802207,1759365049194,-810.67,0.00020821,2]
[388802208,1759365049203,-631.72,0.00020821,2]
[388802209,1759365049213,-1071.67,0.00020821,2]
[388802210,1759365049222,-500.0,0.00020821,2]
[388802211,1759365049231,-1839.89,0.00020821,2]
[388802212,1759365049241,-500.0,0.00020821,2]
[388802213,1759365049251,-500.0,0.00020821,2]
[388802214,1759365049260,-632.71,0.00020821,2]
[388802215,1759365049270,-500.0,0.00020821,2]
[388802216,1759365049279,-554.84096934,0.00020888,2]
[388802217,1759365049288,-1000.0,0.00020888,2]
[388802218,1759365049298,-252.85062586,0.000209,2]
[388802219,1759365049307,-360.0,0.00020944,2]
[388802220,1759365049316,-273.30125555,0.00021,2]
[388802221,1759365049325,-204.45755051,0.00021,2]
[388802222,1759365049334,-2522.54,0.0002109,2]
[388802223,1759365049344,-4000.0,0.0002109,2]
[388802224,1759365049354,-500.0,0.00021095,2]
[388802225,1759365049363,-810.67,0.00021095,2]
[388802226,1759365049372,-1071.67,0.00021095,2]
[388802227,1759365049381,-500.0,0.00021095,2]
[388802228,1759365049390,-1839.89,0.00021095,2]
[388802229,1759365049400,-500.0,0.00021095,2]
[388802230,1759365049413,-500.0,0.00021095,2]
[388802231,1759365049423,-632.71,0.00021095,2]
[388802232,1759365049432,-500.0,0.00021095,2]
[388802233,1759365049446,-151.0,0.00021095,2]
[388802234,1759365049455,-2000.0,0.0002134,2]
[388802235,1759365049464,-7000.0,0.00021348,2]
[388802236,1759365049473,-979.53,0.00021349,2]
[388802237,1759365049482,-151.0,0.00021349,2]
[388802238,1759365049491,-151.0,0.00021349,2]
[388802239,1759365049500,-151.0,0.00021349,2]
[388802240,1759365049509,-151.0,0.00021349,2]
[388802241,1759365049521,-285.678127,0.00021349,2]
[388802242,1759365049530,-151.0,0.00021349,2]
[388802243,1759365049539,-151.0,0.00021349,2]
[388802244,1759365049548,-151.0,0.00021349,2]
[388802245,1759365049558,-500.0,0.00021363,2]
[388802246,1759365049567,-500.0,0.00021363,2]
[388802247,1759365049578,-500.0,0.00021363,2]
[388802248,1759365049587,-500.0,0.00021363,2]
[388802249,1759365049596,-500.0,0.00021363,2]
[388802250,1759365049607,-500.0,0.00021363,2]
[388802251,1759365049616,-500.0,0.00021363,2]
[388802252,1759365049626,-245.2068948,0.00021363,2]
[388802253,1759365049636,-308.08,0.00021369,2]
[388802254,1759365049646,-810.67,0.00021369,2]
[388802255,1759365049655,-1071.67,0.00021369,2]
[388802256,1759365049664,-500.0,0.00021369,2]
[388802257,1759365049674,-1839.89,0.00021369,2]
[388802258,1759365049683,-500.0,0.00021369,2]
[388802259,1759365049692,-500.0,0.00021369,2]
[388802260,1759365049701,-632.71,0.00021369,2]
[388802261,1759365049710,-500.0,0.00021369,2]
[388802262,1759365049720,-1000.0,0.00021436,2]
[388802263,1759365049729,-460.0,0.00021491,2]
[388802264,1759365049738,-720.0,0.00021517,20]
[388802265,1759365049747,-176.0,0.00021616,5]
[388802266,1759365049757,-810.67,0.00021643,2]
[388802267,1759365049766,-1071.67,0.00021643,2]
[388802268,1759365049775,-500.0,0.00021643,2]
[388802269,1759365049784,-1839.89,0.00021643,2]
[388802270,1759365049794,-500.0,0.00021643,2]
[388802271,1759365049803,-500.0,0.00021643,2]
[388802272,1759365049813,-632.71,0.00021643,2]
[388802273,1759365049822,-500.0,0.00021643,2]
[388802274,1759365049831,-151.0,0.00021644,2]
[388802275,1759365049840,-151.0,0.00021644,2]
[388802276,1759365049849,-151.0,0.00021644,2]
[388802277,1759365049858,-151.0,0.00021644,2]
[388802278,1759365049867,-151.0,0.00021644,2]
[388802279,1759365049875,-151.0,0.00021644,2]
[388802280,1759365049885,-151.0,0.00021644,2]
[388802281,1759365049894,-151.0,0.00021644,2]
[388802282,1759365049905,-198.0,0.00021644,2]
[388802283,1759365049914,-198.0,0.00021644,2]
[388802284,1759365049924,-95663.98257905,0.00021688,2]
[388802285,1759365049933,-151.0,0.00021688,2]
[388802286,1759365049942,-10000.0,0.00021688,2]
[388802287,1759365049951,-10000.0,0.00021688,2]
[388802288,1759365049961,-10000.0,0.00021688,2]
[388802289,1759365049970,-10000.0,0.00021688,2]
[388802290,1759365049979,-1691.072754,0.00021688,2]
[388802291,1759365049989,-151.0,0.00021688,2]
[388802292,1759365049998,-151.0,0.00021688,2]
[388802293,1759365050007,-374.375605,0.00021688,2]
[388802294,1759365050016,-151.0,0.00021688,2]
[388802295,1759365050025,-374.375605,0.00021688,2]
[388802296,1759365050034,-374.375605,0.00021688,2]
[388802297,1759365050043,-151.0,0.00021688,2]
[388802298,1759365050053,-374.375605,0.00021688,2]
[388802299,1759365050062,-151.0,0.00021688,2]
[388802300,1759365050072,-151.0,0.00021812,2]
[388802301,1759365050081,-220.013904,0.00021812,2]
[388802302,1759365050090,-220.013904,0.00021812,2]
[388802303,1759365050100,-220.013904,0.00021812,2]
[388802304,1759365050109,-220.013904,0.00021812,2]
[388802305,1759365050118,-419.397,0.00021817,2]
[388802306,1759365050128,-810.67,0.00021917,2]
[388802307,1759365050137,-1071.67,0.00021917,2]
[388802308,1759365050147,-500.0,0.00021917,2]
[388802309,1759365050156,-1839.89,0.00021917,2]
[388802310,1759365050166,-500.0,0.00021917,2]
[388802311,1759365050176,-500.0,0.00021917,2]
[388802312,1759365050185,-632.71,0.00021917,2]
[388802313,1759365050194,-500.0,0.00021917,2]
[388802314,1759365050204,-151.0,0.00021918,2]
[388802315,1759365050213,-6070.38,0.00022,2]
[388802316,1759365050223,-560.0,0.00022039,2]
[388802317,1759365050232,-2531.6006367,0.00022145,2]
[388802318,1759365050241,-15133.7266094,0.00022145,2]
[388802319,1759365050251,-810.67,0.00022191,2]
[388802320,1759365050259,-1071.67,0.00022191,2]
[388802321,1759365050269,-500.0,0.00022191,2]
[388802322,1759365050278,-1839.89,0.00022191,2]
[388802323,1759365050287,-500.0,0.00022191,2]
[388802324,1759365050296,-500.0,0.00022191,2]
[388802325,1759365050305,-632.71,0.00022191,2]
[388802326,1759365050314,-425.62944686,0.00022191,2]
[388802327,1759365050323,-198.0,0.00022192,2]
[388802328,1759365050332,-979.53,0.00022464,2]
[388802329,1759365050342,-810.67,0.00022465,2]
[388802330,1759365050351,-1071.67,0.00022465,2]
[388802331,1759365050360,-500.0,0.00022465,2]
[388802332,1759365050370,-1839.89,0.00022465,2]
[388802333,1759365050380,-500.0,0.00022465,2]
[388802334,1759365050390,-271.77211923,0.00022465,2]
[388802335,1759365050399,-632.71,0.00022465,2]
[388802336,1759365050409,-587.0,0.00022529,2]
[388802337,1759365050418,-151.0,0.00022581,7]
[388802338,1759365050427,-151.0,0.00022581,7]
[388802339,1759365050440,-151.0,0.00022581,7]
[388802340,1759365050449,-2156.0,0.00022581,2]
[388802341,1759365050457,-630.0,0.00022581,2]
[388802342,1759365050467,-410.0,0.00022581,2]
[388802343,1759365050476,-428.711,0.00022581,2]
[388802344,1759365050485,-660.0,0.00022587,2]
[388802345,1759365050494,-810.67,0.00022739,2]
[388802346,1759365050503,-1071.67,0.00022739,2]
[388802347,1759365050514,-472.42937407,0.00022739,2]
[388802348,1759365050523,-1839.89,0.00022739,2]
[388802349,1759365050533,-500.0,0.00022739,2]
[388802350,1759365050542,-632.71,0.00022739,2]
[388802351,1759365050551,-12471.86504695,0.00023,2]
[388802352,1759365050560,-160.0,0.00023,2]
[388802353,1759365050570,-810.67,0.00023013,2]
[388802354,1759365050579,-1071.67,0.00023013,2]
[388802355,1759365050588,-1839.89,0.00023013,2]
[388802356,1759365050598,-151.0,0.00023013,7]
[388802357,1759365050607,-151.0,0.00023013,7]
[388802358,1759365050616,-151.0,0.00023013,7]
[388802359,1759365050626,-500.0,0.00023013,2]
[388802360,1759365050636,-632.71,0.00023013,2]
[388802361,1759365050645,-151.0,0.00023013,7]
[388802362,1759365050654,-4000.0,0.00023032,4]
[388802363,1759365050663,-1157.05743149,0.00023122,2]
[388802364,1759365050673,-760.0,0.00023135,2]
[388802365,1759365050682,-810.67,0.00023287,2]
[388802366,1759365050691,-151.0,0.00023287,7]
[388802367,1759365050701,-151.0,0.00023287,7]
[388802368,1759365050711,-151.0,0.00023287,7]
[388802369,1759365050721,-151.0,0.00023287,7]
[388802370,1759365050731,-1071.67,0.00023287,2]
[388802371,1759365050740,-151.0,0.00023287,7]
[388802372,1759365050750,-1839.89,0.00023287,2]
[388802373,1759365050759,-151.0,0.00023287,7]
[388802374,1759365050768,-151.0,0.00023287,7]
[388802375,1759365050777,-151.0,0.00023287,7]
[388802376,1759365050787,-151.0,0.00023287,7]
[388802377,1759365050795,-151.524729,0.00023287,7]
[388802378,1759365050805,-500.0,0.00023287,2]
[388802379,1759365050814,-632.71,0.00023287,2]
[388802380,1759365050824,-168.0,0.0002329,2]
[388802381,1759365050833,-979.53,0.00023342,2]
[388802382,1759365050842,-168.0,0.00023371,2]
[388802383,1759365050851,-168.0,0.00023391,2]
[388802384,1759365050860,-168.0,0.00023475,2]
[388802385,1759365050869,-450.49383097,0.00023561,2]
[388802386,1759365050879,-177.80116549,0.00023561,2]
[388802387,1759365050888,-710.4934573,0.00023561,2]
[388802388,1759365050897,-810.67,0.00023561,2]
[388802389,1759365050907,-1071.67,0.00023561,2]
[388802390,1759365050917,-1839.89,0.00023561,2]
[388802391,1759365050926,-500.0,0.00023561,2]
[388802392,1759365050935,-632.71,0.00023561,2]
[388802393,1759365050944,-6070.38,0.000236,2]
[388802394,1759365050954,-250.0,0.00023646,2]
[388802395,1759365050964,-864.0,0.00023668,20]
[388802396,1759365050973,-860.0,0.00023683,2]
[388802397,1759365050982,-168.0,0.0002369,2]
[388802398,1759365050991,-820.02911003,0.00023755,2]
[388802399,1759365051001,-168.0,0.00023778,2]
[388802400,1759365051011,-163.0,0.00023808,11]
[388802401,1759365051020,-151.0,0.00023832,7]
[388802402,1759365051029,-151.0,0.00023832,7]
[388802403,1759365051038,-151.0,0.00023832,7]
[388802404,1759365051048,-151.0,0.00023832,7]
[388802405,1759365051057,-151.0,0.00023832,7]
[388802406,1759365051067,-151.0,0.00023832,7]
[388802407,1759365051076,-979.53,0.00023834,2]
[388802408,1759365051085,-810.67,0.00023835,2]
[388802409,1759365051095,-1071.67,0.00023835,2]
[388802410,1759365051104,-1839.89,0.00023835,2]
[388802411,1759365051113,-539.44905226,0.00023835,2]
[388802412,1759365051122,-632.71,0.00023835,2]
[388802413,1759365051132,-168.0,0.00023838,2]
[388802414,1759365051141,-168.0,0.00023953,2]
[388802415,1759365051150,-168.0,0.00023971,2]
[388802416,1759365051160,-168.0,0.00023982,2]
[388802417,1759365051169,-151.0,0.00024,9]
[388802418,1759365051178,-151.0,0.00024,7]
[388802419,1759365051187,-168.0,0.0002403,2]
[388802420,1759365051196,-151.0,0.00024109,7]
[388802421,1759365051205,-810.67,0.00024109,2]
[388802422,1759365051215,-151.0,0.00024109,7]
[388802423,1759365051224,-1071.67,0.00024109,2]
[388802424,1759365051233,-1839.89,0.00024109,2]
[388802425,1759365051242,-632.71,0.00024109,2]
[388802426,1759365051252,-461.0,0.000242,2]
[388802427,1759365051261,-960.0,0.00024231,2]
[388802428,1759365051270,-150.0,0.00024241,2]
[388802429,1759365051280,-179.80221756,0.00024379,2]
[388802430,1759365051290,-810.67,0.00024383,2]
[388802431,1759365051299,-1071.67,0.00024383,2]
[388802432,1759365051401,-1839.89,0.00024383,2]
[388802433,1759365051411,-632.71,0.00024383,2]
[388802434,1759365051421,-979.53,0.00024399,2]
[388802435,1759365051430,-2000.0,0.000244,2]
[388802436,1759365051444,-2000.0,0.000244,2]
[388802437,1759365051453,-151.0,0.000244,7]
[388802438,1759365051462,-168.0,0.00024413,2]
[388802439,1759365051471,-155.447436,0.00024455,2]
[388802440,1759365051482,-979.53,0.00024499,2]
[388802441,1759365051491,-979.53,0.00024499,2]
[388802442,1759365051500,-979.53,0.00024499,2]
[388802443,1759365051511,-979.53,0.00024499,2]
[388802444,1759365051521,-979.53,0.00024499,2]
[388802445,1759365051531,-979.53,0.00024499,2]
[388802446,1759365051540,-979.53,0.00024499,2]
[388802447,1759365051549,-979.53,0.00024499,2]
[388802448,1759365051558,-979.70022422,0.00024499,2]
[388802449,1759365051567,-110357.20432861,0.000245,27]
[388802450,1759365051684,-1772.70000005,0.000245,27]
[388802451,1759365051738,500.0,0.00033425,60]
[388802452,1759365051768,500.0,0.00033425,60]
[388802453,1759365051812,500.0,0.00033425,60]
[388802454,1759365051842,500.0,0.00033425,60]
[388802455,1759365051872,500.0,0.00033425,60]
[388802456,1759365051885,-12828.2088,0.000245,27]
[388802457,1759365051916,500.0,0.00033425,60]
[388802458,1759365051950,500.0,0.00033425,60]
[388802459,1759365051984,500.0,0.00033425,60]
[388802460,1759365052023,500.0,0.00033425,60]
[388802461,1759365052054,500.0,0.00033425,60]
[388802462,1759365052084,500.0,0.00033425,60]
[388802463,1759365052116,500.0,0.00033425,60]
[388802464,1759365052149,500.0,0.00033425,60]
[388802465,1759365052180,500.0,0.00033425,60]
[388802466,1759365052211,500.0,0.00033425,60]
[388802467,1759365052243,500.0,0.00033425,60]
[388802468,1759365052276,500.0,0.00033425,60]
[388802469,1759365052293,-838.3630274,0.000245,27]
[388802470,1759365052305,-825.39796,0.000245,27]
[388802471,1759365052334,294.46773966,0.00033425,60]
[388802472,1759365052353,-4468.88391016,0.000245,27]
[388802473,1759365052497,500.0,0.00033425,60]
[388802474,1759365052582,500.0,0.00033425,60]
[388802475,1759365052612,500.0,0.00033425,60]
[388802476,1759365052647,480.0,0.00033425,60]
[388802477,1759365055790,500.0,0.00033425,60]
[388802478,1759365056153,500.0,0.00033425,60]
[388802479,1759365057926,463.67853633,0.00033425,60]
[388802480,1759365059099,500.0,0.00033425,60]
[388802481,1759365059238,500.0,0.00033425,60]
[388802482,1759365059346,500.0,0.00033425,60]
[388802483,1759365059376,500.0,0.00033425,60]
[388802484,1759365059484,500.0,0.00033425,60]
[388802485,1759365059725,500.0,0.00033425,60]
[388802486,1759365061316,500.0,0.00033425,60]
[388802487,1759365064371,500.0,0.00033425,60]
[388802488,1759365064604,500.0,0.00033425,60]
[388802489,1759365065460,500.0,0.00033425,60]
[388802490,1759365066861,428.12717202,0.00033425,60]
[388802491,1759365067191,500.0,0.00033425,60]
[388802492,1759365067775,500.0,0.00033425,60]
[388802493,1759365068518,408.85341755,0.00033425,60]
[388802494,1759365070113,500.0,0.00033425,60]
[388802495,1759365070353,500.0,0.00033425,60]
[388802496,1759365070593,500.0,0.00033425,60]
[388802497,1759365070860,500.0,0.00033425,60]
[388802498,1759365071140,500.0,0.00033425,60]
[388802499,1759365071387,500.0,0.00033425,60]
[388802500,1759365071662,500.0,0.00033425,60]
[388802501,1759365072085,500.0,0.00033425,60]
[388802502,1759365072276,500.0,0.00033425,60]
[388802503,1759365072530,500.0,0.00033425,60]
[388802504,1759365072773,500.0,0.00033425,60]
[388802505,1759365073022,500.0,0.00033425,60]
[388802506,1759365073288,500.0,0.00033425,60]
[388802507,1759365073518,500.0,0.00033425,60]
[388802508,1759365073577,500.0,0.00033425,60]
[388802509,1759365073839,359.64830249,0.00033425,60]
[388802510,1759365074141,500.0,0.00033425,60]
[388802511,1759365075388,531.99068474,0.00033425,60]
[388802512,1759365075952,500.0,0.00033425,60]
[388802513,1759365079210,500.0,0.00033425,60]
[388802514,1759365082070,500.0,0.00033425,60]
[388802515,1759365082330,440.0,0.00033425,60]
[388802516,1759365082750,500.0,0.00033425,60]
[388802517,1759365088535,500.0,0.00033425,60]
[388802518,1759365091284,482.21843714,0.00033425,60]
[388802519,1759365091469,500.0,0.00033425,60]
[388802520,1759365092486,500.0,0.00033425,60]
[388802521,1759365092516,500.0,0.00033425,60]
[388802522,1759365092723,500.0,0.00033425,60]
[388802523,1759365092756,500.0,0.00033425,60]
[388802524,1759365094246,500.0,0.00033425,60]
[388802525,1759365094731,500.0,0.00033425,60]
[388802526,1759365095339,548.15567883,0.00033425,120]
[388802527,1759365096273,500.0,0.00033425,60]
[388802528,1759365096321,463.49576936,0.00033425,60]
[388802529,1759365098113,500.0,0.00033425,60]
[388802530,1759365099738,500.0,0.00033425,60]
[388802531,1759365100169,460.0,0.00033425,60]
[388802532,1759365102452,500.0,0.00033425,60]
[388802533,1759365103724,500.0,0.00033425,60]
[388802534,1759365104289,500.0,0.00033425,60]
[388802535,1759365104551,500.0,0.00033425,60]
[388802536,1759365107492,500.0,0.00033425,60]
[388802537,1759365109493,500.0,0.00033425,60]
[388802538,1759365109908,460.0,0.00033425,60]
[388802539,1759365111526,500.0,0.00033425,60]
[388802540,1759365111717,460.0,0.00033425,60]
[388802541,1759365113629,420.11920984,0.00033425,60]
[388802542,1759365114752,500.0,0.00033425,60]
[388802543,1759365114936,480.0,0.00033425,60]
[388802544,1759365115534,500.0,0.00033425,60]
[388802545,1759365116429,500.0,0.00033425,60]
[388802546,1759365120797,500.0,0.00033425,60]
[388802547,1759365123500,500.0,0.00033425,60]
[388802548,1759365125590,500.0,0.00033425,60]
[388802549,1759365126122,500.0,0.00033425,60]
[388802550,1759365126353,500.0,0.00033425,60]
[388802551,1759365127060,500.0,0.00033425,60]
[388802552,1759365127588,500.0,0.00033425,60]
[388802553,1759365128789,500.0,0.00033425,60]
[388802554,1759365133172,500.0,0.00033425,60]
[388802555,1759365135660,500.0,0.00033425,60]
[388802556,1759365140898,500.0,0.00033424,60]
[388802557,1759365141940,500.0,0.00033424,60]
[388802558,1759365143946,500.0,0.00033424,60]
[388802559,1759365145098,500.0,0.00033424,60]
[388802560,1759365145320,500.0,0.00033424,60]
[388802561,1759365145538,500.0,0.00033424,60]
[388802562,1759365147251,500.0,0.00033424,60]
[388802563,1759365148187,500.0,0.00033424,60]
[388802564,1759365148612,500.0,0.00033424,60]
[388802565,1759365154535,500.0,0.00033424,60]
[388802566,1759365156631,500.0,0.00033424,60]
[388802567,1759365158945,500.0,0.00033424,60]
[388802568,1759365160640,500.0,0.00033424,60]
[388802569,1759365163857,500.0,0.00033424,60]
[388802570,1759365166127,500.0,0.00033424,60]
[388802571,1759365171854,500.0,0.00033424,60]
[388802572,1759365173425,500.0,0.00033424,60]
[388802573,1759365173707,500.0,0.00033424,60]
[388802574,1759365173960,500.0,0.00033424,60]
[388802575,1759365175704,500.0,0.00033424,60]
[388802576,1759365178968,480.0,0.00033424,60]
[388802577,1759365180092,440.0,0.00033424,60]
[388802578,1759365180448,466.63485749,0.00033424,60]
[388802579,1759365180906,500.0,0.00033424,60]
[388802580,1759365182305,480.0,0.00033424,60]
[388802581,1759365185933,500.0,0.00033424,60]
[388802582,1759365186688,534.48223388,0.00033424,60]
[388802583,1759365191284,500.0,0.00033424,60]
[388802584,1759365191801,500.0,0.00033424,60]
[388802585,1759365193280,500.0,0.00033424,60]
[388802586,1759365194912,480.0,0.00033424,60]
[388802587,1759365198147,500.0,0.00033424,60]
[388802588,1759365199583,480.0,0.00033424,60]
[388802589,1759365201487,480.0,0.00033424,60]
[388802591,1759365204742,500.0,0.00033424,60]
[388802592,1759365206494,500.0,0.00033424,60]
[388802593,1759365207548,360.35931492,0.00033424,60]
[388802594,1759365211459,500.0,0.00033424,60]
[388802595,1759365218735,480.0,0.00033424,60]
[388802596,1759365220697,480.0,0.00033424,60]
[388802597,1759365224638,500.0,0.00033424,60]
[388802598,1759365231008,480.0,0.00033424,60]
[388802599,1759365242985,500.0,0.00033424,60]
[388802600,1759365245225,500.0,0.00033424,60]
[388802601,1759365248229,500.0,0.00033424,60]
[388802602,1759365253425,500.0,0.00033424,60]
[388802603,1759365254706,500.0,0.00033424,60]
[388802604,1759365254931,500.0,0.00033424,60]
[388802605,1759365255123,500.0,0.00033424,60]
[388802606,1759365255173,472.42937407,0.00033424,60]
[388802607,1759365256983,500.0,0.00033424,60]
[388802608,1759365261633,500.0,0.00033424,60]
[388802609,1759365263594,500.0,0.00033424,60]
[388802610,1759365270952,500.0,0.00033424,60]
[388802611,1759365274280,186.69362217,0.00033424,60]
[388802612,1759365277652,460.0,0.00033424,60]
[388802613,1759365280809,500.0,0.00033424,60]
[388802614,1759365288069,480.0,0.00033424,60]
[388802615,1759365289857,480.0,0.00033424,60]
[388802616,1759365296869,480.0,0.00033424,60]
[388802617,1759365300335,423.46784794,0.00033424,60]
[388802618,1759365311105,500.0,0.00033424,60]
[388802619,1759365311340,500.0,0.00033424,60]
[388802620,1759365311492,625.14,0.00033424,60]
[388802621,1759365311846,625.14,0.00033424,60]
[388802622,1759365312110,625.14,0.00033424,60]
[388802623,1759365312379,625.14,0.00033424,60]
[388802624,1759365312661,625.14,0.00033424,60]
[388802625,1759365312929,625.14,0.00033424,60]
[388802626,1759365313307,625.14,0.00033424,60]
[388802627,1759365313567,625.14,0.00033424,60]
[388802628,1759365313828,625.14,0.00033424,60]
[388802629,1759365314227,625.14,0.00033424,60]
[388802630,1759365314634,625.14,0.00033424,60]
[388802631,1759365314919,625.14,0.00033424,60]
[388802632,1759365315151,625.14,0.00033424,60]
[388802633,1759365315384,625.14,0.00033424,60]
[388802634,1759365315652,625.14,0.00033424,60]
[388802635,1759365316063,625.14,0.00033424,60]
[388802636,1759365316324,625.14,0.00033424,60]
[388802637,1759365316560,625.14,0.00033424,60]